[Event "*** Titled Tuesday Blitz"]
[Site "Chess.com"]
[Date "2020.05.19"]
[Round "1"]
[White "hansen"]
[Black "Koalaskakistis"]
[Result "1-0"]
[WhiteElo "2962"]
[BlackElo "2457"]
[TimeControl "180+1"]
[EndTime "12:07:02 PDT"]
[Termination "hansen won on time"]

1. e4 {[%clk 0:02:59.2]} 1... c5 {[%clk 0:02:58.1]} 2. Nf3 {[%clk 0:02:59.5]}
2... Nc6 {[%clk 0:02:58.1]} 3. Bb5 {[%clk 0:02:59.3]} 3... Nf6 {[%clk
0:02:56.9]} 4. Bxc6 {[%clk 0:02:58.9]} 4... dxc6 {[%clk 0:02:57.8]} 5. d3 {[%clk
0:02:59.5]} 5... Qc7 {[%clk 0:02:55.9]} 6. Nbd2 {[%clk 0:02:58]} 6... e5 {[%clk
0:02:54.8]} 7. Nc4 {[%clk 0:02:53.8]} 7... Nd7 {[%clk 0:02:51.7]} 8. O-O {[%clk
0:02:54.1]} 8... f6 {[%clk 0:02:50.9]} 9. Nh4 {[%clk 0:02:54.2]} 9... g5 {[%clk
0:02:03.5]} 10. Qh5+ {[%clk 0:02:50.3]} 10... Kd8 {[%clk 0:02:02.2]} 11. Ng6
{[%clk 0:02:36.5]} 11... Rg8 {[%clk 0:02:02]} 12. Qxh7 {[%clk 0:02:36.6]} 12...
Rg7 {[%clk 0:02:02.1]} 13. Qh5 {[%clk 0:02:28.5]} 13... Rg8 {[%clk 0:01:30.3]}
14. h4 {[%clk 0:01:31.2]} 14... gxh4 {[%clk 0:01:22.5]} 15. f4 {[%clk
0:01:31.1]} 15... b5 {[%clk 0:01:16.6]} 16. Ne3 {[%clk 0:01:25.8]} 16... Bd6
{[%clk 0:01:12.5]} 17. Nf5 {[%clk 0:01:24.1]} 17... exf4 {[%clk 0:01:00]} 18.
Qh7 {[%clk 0:01:08.4]} 18... Re8 {[%clk 0:00:53.5]} 19. Qxh4 {[%clk 0:01:07.7]}
19... Bb7 {[%clk 0:00:46.9]} 20. Bxf4 {[%clk 0:00:57.7]} 20... Bxf4 {[%clk
0:00:45.6]} 21. Rxf4 {[%clk 0:00:58.6]} 21... a5 {[%clk 0:00:30]} 22. Ng7 {[%clk
0:00:58]} 22... Qd6 {[%clk 0:00:04.1]} 23. Nxe8 {[%clk 0:00:47.2]} 23... Kxe8
{[%clk 0:00:04.7]} 24. Qh8+ {[%clk 0:00:43.6]} 24... Kf7 {[%clk 0:00:04.8]} 25.
Qh7+ {[%clk 0:00:43.8]} 25... Ke6 {[%clk 0:00:04.8]} 26. Raf1 {[%clk 0:00:41.8]}
26... Qd4+ {[%clk 0:00:04.5]} 27. R1f2 {[%clk 0:00:42.1]} 27... Re8 {[%clk
0:00:02.8]} 28. Qh3+ {[%clk 0:00:32.9]} 28... Kd6 {[%clk 0:00:03]} 29. e5+
{[%clk 0:00:32.1]} 29... fxe5 {[%clk 0:00:01.6]} 30. Rxd4+ {[%clk 0:00:32.2]}
30... exd4 {[%clk 0:00:01.4]} 31. Rf7 {[%clk 0:00:32.3]} 1-0

[Event "*** Titled Tuesday Blitz"]
[Site "Chess.com"]
[Date "2020.05.19"]
[Round "1"]
[White "PIwan"]
[Black "DonBroca"]
[Result "1-0"]
[WhiteElo "2520"]
[BlackElo "2192"]
[TimeControl "180+1"]
[EndTime "12:07:02 PDT"]
[Termination "PIwan won by resignation"]

1. c4 {[%clk 0:03:00.9]} 1... Nf6 {[%clk 0:02:59.6]} 2. Nc3 {[%clk 0:03:01.4]}
2... e6 {[%clk 0:02:58.4]} 3. e4 {[%clk 0:03:01.5]} 3... d6 {[%clk 0:02:52.3]}
4. d4 {[%clk 0:03:00.6]} 4... Be7 {[%clk 0:02:51.2]} 5. Nf3 {[%clk 0:02:58.9]}
5... O-O {[%clk 0:02:50.7]} 6. Be2 {[%clk 0:02:58.9]} 6... Nbd7 {[%clk 0:02:50]}
7. O-O {[%clk 0:02:58]} 7... e5 {[%clk 0:02:49.6]} 8. d5 {[%clk 0:02:57.7]} 8...
a5 {[%clk 0:02:48.1]} 9. Be3 {[%clk 0:02:57.2]} 9... b6 {[%clk 0:02:44.1]} 10.
Nd2 {[%clk 0:02:55.5]} 10... Nc5 {[%clk 0:02:35.9]} 11. a3 {[%clk 0:02:55.4]}
11... a4 {[%clk 0:02:33.7]} 12. Bxc5 {[%clk 0:02:54.9]} 12... bxc5 {[%clk
0:02:32.2]} 13. Nxa4 {[%clk 0:02:55.3]} 13... Bd7 {[%clk 0:02:29.9]} 14. Nc3
{[%clk 0:02:53.3]} 14... Rb8 {[%clk 0:02:29.9]} 15. Rb1 {[%clk 0:02:49.5]} 15...
Ne8 {[%clk 0:02:19.4]} 16. b4 {[%clk 0:02:48.4]} 16... cxb4 {[%clk 0:02:17.8]}
17. axb4 {[%clk 0:02:49.3]} 17... f5 {[%clk 0:02:16.8]} 18. exf5 {[%clk
0:02:45.4]} 18... Bxf5 {[%clk 0:02:17.7]} 19. Nde4 {[%clk 0:02:45.8]} 19... Nf6
{[%clk 0:02:16.8]} 20. Bd3 {[%clk 0:02:44.4]} 20... Qd7 {[%clk 0:02:13.7]} 21.
Ng5 {[%clk 0:02:30.8]} 21... e4 {[%clk 0:02:10.8]} 22. Ncxe4 {[%clk 0:02:23.8]}
22... h6 {[%clk 0:02:09.3]} 23. Nxf6+ {[%clk 0:02:22.8]} 23... Bxf6 {[%clk
0:02:09.3]} 24. Bxf5 {[%clk 0:02:21.8]} 24... Qxf5 {[%clk 0:02:09.6]} 25. Ne6
{[%clk 0:02:21.7]} 25... Rf7 {[%clk 0:02:09.2]} 26. Qe2 {[%clk 0:02:10.2]} 26...
Ra8 {[%clk 0:01:41.7]} 27. f4 {[%clk 0:01:48.1]} 27... Ra3 {[%clk 0:01:36]} 28.
g4 {[%clk 0:01:35]} 28... Qd3 {[%clk 0:01:35.5]} 29. Qxd3 {[%clk 0:01:31.4]}
29... Rxd3 {[%clk 0:01:36.4]} 30. Rfd1 {[%clk 0:01:29.8]} 30... Rc3 {[%clk
0:01:32.2]} 31. Rdc1 {[%clk 0:01:25.7]} 31... Rd3 {[%clk 0:01:24.5]} 32. Kg2
{[%clk 0:01:22.3]} 32... Rd2+ {[%clk 0:01:18.7]} 33. Kg3 {[%clk 0:01:19.2]}
33... Rd3+ {[%clk 0:01:16.3]} 34. Kf2 {[%clk 0:01:18]} 34... Bd4+ {[%clk
0:01:16.2]} 35. Ke2 {[%clk 0:01:14.1]} 35... Re3+ {[%clk 0:01:14.4]} 36. Kd2
{[%clk 0:01:14.2]} 36... Re4 {[%clk 0:00:54.3]} 37. Kd3 {[%clk 0:01:08.2]} 37...
Rfxf4 {[%clk 0:00:54.4]} 38. Nxf4 {[%clk 0:01:02.2]} 38... Rxf4 {[%clk
0:00:55.3]} 39. c5 {[%clk 0:00:54.3]} 39... Be5 {[%clk 0:00:51.2]} 40. b5 {[%clk
0:00:45.1]} 40... Rd4+ {[%clk 0:00:36.6]} 41. Ke2 {[%clk 0:00:38.9]} 41... Rxd5
{[%clk 0:00:34.8]} 42. b6 {[%clk 0:00:36.4]} 42... cxb6 {[%clk 0:00:31.8]} 43.
c6 {[%clk 0:00:28.4]} 43... Rc5 {[%clk 0:00:21.8]} 44. c7 {[%clk 0:00:26.1]} 1-0

[Event "*** Titled Tuesday Blitz"]
[Site "Chess.com"]
[Date "2020.05.19"]
[Round "1"]
[White "S_Kalvaitis"]
[Black "DenLaz"]
[Result "0-1"]
[WhiteElo "2351"]
[BlackElo "2661"]
[TimeControl "180+1"]
[EndTime "12:07:04 PDT"]
[Termination "DenLaz won by resignation"]

1. d4 {[%clk 0:03:00.9]} 1... Nf6 {[%clk 0:02:59.4]} 2. Nf3 {[%clk 0:03:01]}
2... e6 {[%clk 0:02:59.4]} 3. e3 {[%clk 0:03:01.1]} 3... b6 {[%clk 0:02:58.5]}
4. Bd3 {[%clk 0:02:56.6]} 4... Bb7 {[%clk 0:02:58.8]} 5. Nbd2 {[%clk 0:02:57.2]}
5... d5 {[%clk 0:02:59.1]} 6. O-O {[%clk 0:02:56.7]} 6... c5 {[%clk 0:02:55.5]}
7. c3 {[%clk 0:02:57.1]} 7... Be7 {[%clk 0:02:55.6]} 8. Qe2 {[%clk 0:02:55]}
8... O-O {[%clk 0:02:53.6]} 9. e4 {[%clk 0:02:50.6]} 9... dxe4 {[%clk
0:02:54.5]} 10. Nxe4 {[%clk 0:02:50.4]} 10... Nxe4 {[%clk 0:02:53.1]} 11. Bxe4
{[%clk 0:02:50.7]} 11... Bxe4 {[%clk 0:02:54]} 12. Qxe4 {[%clk 0:02:51.3]} 12...
Nd7 {[%clk 0:02:54.6]} 13. Bf4 {[%clk 0:02:44.3]} 13... Nf6 {[%clk 0:02:52.8]}
14. Qe2 {[%clk 0:02:41.8]} 14... Qc8 {[%clk 0:02:48.8]} 15. Rfd1 {[%clk
0:02:36.7]} 15... Qb7 {[%clk 0:02:47.1]} 16. Ne5 {[%clk 0:02:18]} 16... Rfd8
{[%clk 0:02:31.7]} 17. Rd3 {[%clk 0:02:02.7]} 17... cxd4 {[%clk 0:02:28.9]} 18.
cxd4 {[%clk 0:02:03.6]} 18... Nd5 {[%clk 0:02:27.5]} 19. Bd2 {[%clk 0:01:59.3]}
19... Rac8 {[%clk 0:02:25.2]} 20. Rd1 {[%clk 0:01:56.2]} 20... Rc2 {[%clk
0:02:21.8]} 21. Qf3 {[%clk 0:01:17.8]} 21... Bf6 {[%clk 0:02:18]} 22. Bc3 {[%clk
0:01:10.8]} 22... Qc7 {[%clk 0:02:06.6]} 23. Ng4 {[%clk 0:01:06.9]} 23... Be7
{[%clk 0:02:04.3]} 24. Ne5 {[%clk 0:01:03.7]} 24... Bd6 {[%clk 0:02:03]} 25. Ng4
{[%clk 0:00:58.1]} 25... f5 {[%clk 0:01:49.7]} 26. Ne3 {[%clk 0:00:57.4]} 26...
Nxe3 {[%clk 0:01:45.8]} 27. fxe3 {[%clk 0:00:56.5]} 27... Bxh2+ {[%clk
0:01:44.9]} 28. Kh1 {[%clk 0:00:56.6]} 28... Bd6 {[%clk 0:01:42.5]} 29. d5
{[%clk 0:00:50.1]} 29... e5 {[%clk 0:01:36.6]} 30. Qxf5 {[%clk 0:00:49.8]} 30...
Rf8 {[%clk 0:01:37]} 31. Qe6+ {[%clk 0:00:49.2]} 31... Kh8 {[%clk 0:01:37.3]}
32. e4 {[%clk 0:00:43.4]} 32... Qd8 {[%clk 0:01:27.2]} 33. Rh3 {[%clk
0:00:41.4]} 33... Rf6 {[%clk 0:01:19.7]} 34. Qg4 {[%clk 0:00:37.2]} 34... Qf8
{[%clk 0:01:20.1]} 35. Rg1 {[%clk 0:00:22.5]} 35... b5 {[%clk 0:01:16]} 36. a3
{[%clk 0:00:22]} 36... Rcf2 {[%clk 0:01:11.1]} 37. Qh5 {[%clk 0:00:20.9]} 37...
h6 {[%clk 0:01:10.1]} 38. Qg4 {[%clk 0:00:20.9]} 38... R2f4 {[%clk 0:01:04.7]}
39. Qe2 {[%clk 0:00:21.2]} 39... Rg6 {[%clk 0:01:03.5]} 40. Qe3 {[%clk
0:00:19.7]} 40... Qc8 {[%clk 0:00:52.3]} 41. Kh2 {[%clk 0:00:19]} 41... Bc5
{[%clk 0:00:51.3]} 42. Qe1 {[%clk 0:00:12.5]} 42... Bxg1+ {[%clk 0:00:51.2]} 43.
Qxg1 {[%clk 0:00:13.4]} 43... Rfg4 {[%clk 0:00:47.7]} 44. g3 {[%clk 0:00:12.3]}
44... Rxe4 {[%clk 0:00:44.2]} 45. Qxa7 {[%clk 0:00:12.1]} 45... Re2+ {[%clk
0:00:43.9]} 46. Kh1 {[%clk 0:00:12.6]} 46... Qxh3+ {[%clk 0:00:44.4]} 0-1

[Event "*** Titled Tuesday Blitz"]
[Site "Chess.com"]
[Date "2020.05.19"]
[Round "1"]
[White "WildBizon"]
[Black "WeAintSurePal"]
[Result "1-0"]
[WhiteElo "2611"]
[BlackElo "2315"]
[TimeControl "180+1"]
[EndTime "12:07:05 PDT"]
[Termination "WildBizon won by resignation"]

1. e4 {[%clk 0:03:00]} 1... c5 {[%clk 0:02:57.9]} 2. Nf3 {[%clk 0:02:59.7]} 2...
e6 {[%clk 0:02:53.3]} 3. d4 {[%clk 0:02:59.5]} 3... cxd4 {[%clk 0:02:54.2]} 4.
Nxd4 {[%clk 0:03:00.4]} 4... Nc6 {[%clk 0:02:54.5]} 5. Nc3 {[%clk 0:03:00.3]}
5... Qc7 {[%clk 0:02:54.3]} 6. Be2 {[%clk 0:03:00]} 6... Nf6 {[%clk 0:02:48.3]}
7. O-O {[%clk 0:02:59.9]} 7... a6 {[%clk 0:02:48]} 8. Be3 {[%clk 0:02:59.3]}
8... b5 {[%clk 0:02:44.5]} 9. Nxc6 {[%clk 0:02:55.8]} 9... dxc6 {[%clk
0:02:44.1]} 10. f4 {[%clk 0:02:54.8]} 10... e5 {[%clk 0:02:42.9]} 11. fxe5
{[%clk 0:02:52.7]} 11... Qxe5 {[%clk 0:02:37.1]} 12. Bf4 {[%clk 0:02:47.7]}
12... Qc5+ {[%clk 0:02:36.7]} 13. Kh1 {[%clk 0:02:47]} 13... Be7 {[%clk
0:02:36.9]} 14. Bf3 {[%clk 0:02:40.7]} 14... Be6 {[%clk 0:02:35.4]} 15. e5
{[%clk 0:02:36.4]} 15... Rd8 {[%clk 0:02:27]} 16. Qc1 {[%clk 0:02:29.6]} 16...
Nd5 {[%clk 0:02:26.5]} 17. Ne4 {[%clk 0:02:29.2]} 17... Qb6 {[%clk 0:02:25.5]}
18. Bg5 {[%clk 0:02:20.2]} 18... O-O {[%clk 0:02:25.1]} 19. Bxe7 {[%clk
0:02:07.2]} 19... Nxe7 {[%clk 0:02:23.9]} 20. Qg5 {[%clk 0:02:04.7]} 20... Nd5
{[%clk 0:02:21.2]} 21. Rae1 {[%clk 0:01:59.1]} 21... f6 {[%clk 0:01:59.2]} 22.
exf6 {[%clk 0:01:49.6]} 22... Nxf6 {[%clk 0:01:59.7]} 23. Nc5 {[%clk 0:01:41.2]}
23... Bc4 {[%clk 0:01:51]} 24. Ne6 {[%clk 0:01:29.9]} 24... Bxe6 {[%clk
0:01:50.1]} 25. Rxe6 {[%clk 0:01:30.8]} 25... Nd5 {[%clk 0:01:38.6]} 26. h3
{[%clk 0:01:26.7]} 26... Qc7 {[%clk 0:00:59.5]} 27. Rfe1 {[%clk 0:01:20.9]}
27... Qf7 {[%clk 0:00:53.7]} 28. Rxc6 {[%clk 0:01:17.6]} 28... Nf6 {[%clk
0:00:50.3]} 29. Rxa6 {[%clk 0:01:14.4]} 29... Kh8 {[%clk 0:00:49.2]} 30. Rae6
{[%clk 0:01:13.1]} 30... Rfe8 {[%clk 0:00:44.2]} 31. Rxe8+ {[%clk 0:01:13.1]}
31... Rxe8 {[%clk 0:00:45.1]} 32. Rxe8+ {[%clk 0:01:11.6]} 32... Qxe8 {[%clk
0:00:46]} 33. Kh2 {[%clk 0:01:05.1]} 33... h6 {[%clk 0:00:43.2]} 34. Qf4 {[%clk
0:01:03.3]} 34... Kh7 {[%clk 0:00:34.1]} 35. a3 {[%clk 0:01:02.8]} 35... Qe6
{[%clk 0:00:30.5]} 36. b3 {[%clk 0:01:01.7]} 36... Qe7 {[%clk 0:00:17.5]} 37. a4
{[%clk 0:00:56.9]} 37... bxa4 {[%clk 0:00:17.8]} 38. bxa4 {[%clk 0:00:57.4]}
38... Qa7 {[%clk 0:00:18.3]} 39. c3 {[%clk 0:00:53.6]} 39... Qa5 {[%clk
0:00:18.1]} 40. Qb4 {[%clk 0:00:43.6]} 40... Qe5+ {[%clk 0:00:17.5]} 41. g3
{[%clk 0:00:39.7]} 41... Qe3 {[%clk 0:00:16.9]} 42. Bg2 {[%clk 0:00:37]} 42...
Nh5 {[%clk 0:00:15.8]} 43. Qe4+ {[%clk 0:00:36.8]} 43... Qxe4 {[%clk 0:00:15.8]}
44. Bxe4+ {[%clk 0:00:37.7]} 1-0

[Event "*** Titled Tuesday Blitz"]
[Site "Chess.com"]
[Date "2020.05.19"]
[Round "1"]
[White "Artem_Sadovsky"]
[Black "IMinTheWings"]
[Result "1-0"]
[WhiteElo "2540"]
[BlackElo "2212"]
[TimeControl "180+1"]
[EndTime "12:07:05 PDT"]
[Termination "Artem_Sadovsky won by resignation"]

1. Nf3 {[%clk 0:03:00.9]} 1... c5 {[%clk 0:02:57.6]} 2. g3 {[%clk 0:03:01.1]}
2... Nc6 {[%clk 0:02:55.4]} 3. Bg2 {[%clk 0:03:01.7]} 3... g6 {[%clk 0:02:52]}
4. O-O {[%clk 0:03:01.5]} 4... Bg7 {[%clk 0:02:49.2]} 5. c3 {[%clk 0:03:01.5]}
5... Nf6 {[%clk 0:02:47]} 6. d4 {[%clk 0:03:01.8]} 6... cxd4 {[%clk 0:02:45]} 7.
cxd4 {[%clk 0:03:02.7]} 7... O-O {[%clk 0:02:44.2]} 8. Nc3 {[%clk 0:03:03.2]}
8... d5 {[%clk 0:02:41.5]} 9. Ne5 {[%clk 0:03:02.5]} 9... e6 {[%clk 0:02:33.6]}
10. Bf4 {[%clk 0:02:57.4]} 10... Nd7 {[%clk 0:02:28.4]} 11. Nf3 {[%clk
0:02:55.1]} 11... f6 {[%clk 0:02:23.8]} 12. Rc1 {[%clk 0:02:52.9]} 12... a6
{[%clk 0:02:23.3]} 13. Na4 {[%clk 0:02:37.5]} 13... Qe7 {[%clk 0:02:15]} 14. Nc5
{[%clk 0:02:30.3]} 14... Nxc5 {[%clk 0:02:13.3]} 15. dxc5 {[%clk 0:02:31.2]}
15... e5 {[%clk 0:02:13.7]} 16. Bd2 {[%clk 0:02:26]} 16... Be6 {[%clk
0:02:11.9]} 17. b4 {[%clk 0:02:25]} 17... h6 {[%clk 0:02:01.6]} 18. a4 {[%clk
0:02:19.6]} 18... e4 {[%clk 0:01:51.9]} 19. Ne1 {[%clk 0:01:58.8]} 19... f5
{[%clk 0:01:48.6]} 20. b5 {[%clk 0:01:57.4]} 20... axb5 {[%clk 0:01:48.6]} 21.
axb5 {[%clk 0:01:58.3]} 21... Nd4 {[%clk 0:01:45.9]} 22. Bxh6 {[%clk 0:01:49.1]}
22... Bxh6 {[%clk 0:01:44.6]} 23. Qxd4 {[%clk 0:01:48.3]} 23... Bxc1 {[%clk
0:01:44.3]} 24. Nc2 {[%clk 0:01:45.7]} 24... Bh6 {[%clk 0:01:43.3]} 25. Qb4
{[%clk 0:01:25.3]} 25... Bg7 {[%clk 0:01:39.9]} 26. Nd4 {[%clk 0:01:21.8]} 26...
Bxd4 {[%clk 0:01:39.9]} 27. Qxd4 {[%clk 0:01:22.5]} 27... Qf6 {[%clk 0:01:40.6]}
28. Qb4 {[%clk 0:01:21.5]} 28... Rfc8 {[%clk 0:01:35.6]} 29. h4 {[%clk
0:01:19.5]} 29... Qe7 {[%clk 0:01:31.4]} 30. Rc1 {[%clk 0:01:18.8]} 30... b6
{[%clk 0:01:31.4]} 31. Qd2 {[%clk 0:01:14.4]} 31... Rxc5 {[%clk 0:01:28.5]} 32.
Rb1 {[%clk 0:01:11.5]} 32... Qf6 {[%clk 0:01:24.3]} 33. Qf4 {[%clk 0:01:06.1]}
33... d4 {[%clk 0:01:16.2]} 34. Bxe4 {[%clk 0:01:05.4]} 34... Qe5 {[%clk
0:01:12]} 35. Bxa8 {[%clk 0:01:02.5]} 35... Qxf4 {[%clk 0:01:11.6]} 36. gxf4
{[%clk 0:01:03.4]} 36... Bc4 {[%clk 0:01:07.2]} 37. Bf3 {[%clk 0:00:52.5]} 37...
Bxb5 {[%clk 0:01:04.9]} 38. Rb4 {[%clk 0:00:50.2]} 38... d3 {[%clk 0:00:39.9]}
39. exd3 {[%clk 0:00:51.1]} 39... Bxd3 {[%clk 0:00:40.7]} 40. Rxb6 {[%clk
0:00:51.5]} 40... Kg7 {[%clk 0:00:40.2]} 41. Kh2 {[%clk 0:00:47.1]} 41... Rc1
{[%clk 0:00:38.1]} 42. h5 {[%clk 0:00:42.1]} 42... gxh5 {[%clk 0:00:35.6]} 43.
Bxh5 {[%clk 0:00:42.5]} 43... Rf1 {[%clk 0:00:33.9]} 44. Kg2 {[%clk 0:00:36.6]}
44... Rc1 {[%clk 0:00:32.2]} 45. Rg6+ {[%clk 0:00:36.7]} 45... Kh7 {[%clk
0:00:30.8]} 46. Rd6 {[%clk 0:00:37.6]} 46... Be4+ {[%clk 0:00:30.7]} 47. f3
{[%clk 0:00:38.2]} 47... Rc2+ {[%clk 0:00:29.5]} 48. Kg3 {[%clk 0:00:38.8]}
48... Bc6 {[%clk 0:00:29.1]} 49. Bg6+ {[%clk 0:00:37.5]} 49... Kg7 {[%clk
0:00:29.1]} 50. Bxf5 {[%clk 0:00:38.4]} 50... Rc5 {[%clk 0:00:28.9]} 51. Be4
{[%clk 0:00:38.2]} 51... Bxe4 {[%clk 0:00:28.5]} 52. fxe4 {[%clk 0:00:39.1]}
52... Rc3+ {[%clk 0:00:27.2]} 53. Kg4 {[%clk 0:00:39.2]} 1-0

[Event "*** Titled Tuesday Blitz"]
[Site "Chess.com"]
[Date "2020.05.19"]
[Round "1"]
[White "kot60"]
[Black "SGchess01"]
[Result "0-1"]
[WhiteElo "2394"]
[BlackElo "2740"]
[TimeControl "180+1"]
[EndTime "12:07:06 PDT"]
[Termination "SGchess01 won by resignation"]

1. e4 {[%clk 0:03:00.9]} 1... c5 {[%clk 0:02:57.5]} 2. Nc3 {[%clk 0:03:00.1]}
2... Nc6 {[%clk 0:02:57.3]} 3. Bc4 {[%clk 0:02:59]} 3... g6 {[%clk 0:02:54.7]}
4. d3 {[%clk 0:02:59]} 4... Bg7 {[%clk 0:02:52.7]} 5. f4 {[%clk 0:02:58.9]} 5...
e6 {[%clk 0:02:52.2]} 6. f5 {[%clk 0:02:58.8]} 6... Nge7 {[%clk 0:02:50.8]} 7.
fxe6 {[%clk 0:02:59]} 7... fxe6 {[%clk 0:02:47.2]} 8. Nf3 {[%clk 0:02:58.5]}
8... d5 {[%clk 0:02:46.3]} 9. Bb3 {[%clk 0:02:57.7]} 9... O-O {[%clk 0:02:44.7]}
10. O-O {[%clk 0:02:57.6]} 10... h6 {[%clk 0:02:44.6]} 11. Kh1 {[%clk 0:02:53]}
11... Kh7 {[%clk 0:02:43.5]} 12. Bd2 {[%clk 0:02:48.3]} 12... a6 {[%clk
0:02:38.9]} 13. a4 {[%clk 0:02:47.3]} 13... Nd4 {[%clk 0:02:31.4]} 14. Nxd4
{[%clk 0:02:41.6]} 14... Rxf1+ {[%clk 0:02:30.7]} 15. Qxf1 {[%clk 0:02:40.2]}
15... cxd4 {[%clk 0:02:31.6]} 16. Nd1 {[%clk 0:02:16.4]} 16... dxe4 {[%clk
0:02:31.4]} 17. dxe4 {[%clk 0:02:15.9]} 17... Nc6 {[%clk 0:02:24.6]} 18. Nf2
{[%clk 0:02:12.9]} 18... Qe7 {[%clk 0:02:21.5]} 19. Nd3 {[%clk 0:02:10.5]} 19...
Bd7 {[%clk 0:02:22]} 20. Qe2 {[%clk 0:02:07.5]} 20... e5 {[%clk 0:02:19.6]} 21.
Rf1 {[%clk 0:02:05.7]} 21... Rf8 {[%clk 0:02:18.6]} 22. h3 {[%clk 0:02:03.1]}
22... Rxf1+ {[%clk 0:02:16.7]} 23. Qxf1 {[%clk 0:02:02.7]} 23... h5 {[%clk
0:02:16.5]} 24. Qf7 {[%clk 0:01:51.6]} 24... Qxf7 {[%clk 0:02:10.7]} 25. Bxf7
{[%clk 0:01:50.7]} 25... Bf8 {[%clk 0:01:58.4]} 26. Bd5 {[%clk 0:01:48.8]} 26...
Bd6 {[%clk 0:01:56.7]} 27. Kg1 {[%clk 0:01:37.7]} 27... Kg7 {[%clk 0:01:56.7]}
28. Kf2 {[%clk 0:01:37.3]} 28... b6 {[%clk 0:01:57.2]} 29. b3 {[%clk 0:01:32.2]}
29... Ne7 {[%clk 0:01:57]} 30. Bb7 {[%clk 0:01:25.4]} 30... a5 {[%clk
0:01:50.7]} 31. Kf3 {[%clk 0:01:17.6]} 31... Kf6 {[%clk 0:01:49.4]} 32. g4
{[%clk 0:01:10.2]} 32... hxg4+ {[%clk 0:01:47.6]} 33. hxg4 {[%clk 0:01:10.4]}
33... g5 {[%clk 0:01:45.4]} 34. Nf2 {[%clk 0:01:00.1]} 34... Ng6 {[%clk
0:01:44.6]} 35. Nh3 {[%clk 0:00:50.2]} 35... Nf4 {[%clk 0:01:44.2]} 36. Nf2
{[%clk 0:00:41.9]} 36... Be6 {[%clk 0:01:31.7]} 37. Ba6 {[%clk 0:00:39.9]} 37...
Ke7 {[%clk 0:01:13.3]} 38. Bb5 {[%clk 0:00:39.6]} 38... Ba3 {[%clk 0:01:08.4]}
39. Ba6 {[%clk 0:00:38.5]} 39... Kd6 {[%clk 0:01:08.2]} 40. Bb5 {[%clk
0:00:38.2]} 40... Bb2 {[%clk 0:00:57.6]} 41. Ba6 {[%clk 0:00:36.6]} 41... Bc3
{[%clk 0:00:56.9]} 42. Bxc3 {[%clk 0:00:33]} 42... dxc3 {[%clk 0:00:57.8]} 43.
Ke3 {[%clk 0:00:25.9]} 43... Kc5 {[%clk 0:00:58]} 44. Nd3+ {[%clk 0:00:22.5]}
44... Nxd3 {[%clk 0:00:57.9]} 45. Kxd3 {[%clk 0:00:20.6]} 45... Kb4 {[%clk
0:00:58.1]} 46. Bb5 {[%clk 0:00:18.6]} 46... Bxg4 {[%clk 0:00:58]} 47. Ba6
{[%clk 0:00:16.6]} 47... Be6 {[%clk 0:00:57]} 48. Bb5 {[%clk 0:00:16.6]} 48...
g4 {[%clk 0:00:57.1]} 49. Ke3 {[%clk 0:00:15.4]} 49... Ka3 {[%clk 0:00:57.5]}
50. Bd3 {[%clk 0:00:13.9]} 50... Kb2 {[%clk 0:00:57.9]} 51. Kf2 {[%clk
0:00:12.7]} 51... Bxb3 {[%clk 0:00:57.8]} 52. cxb3 {[%clk 0:00:10.8]} 52... c2
{[%clk 0:00:56.9]} 53. Bxc2 {[%clk 0:00:11.2]} 53... Kxc2 {[%clk 0:00:57.8]} 0-1

[Event "*** Titled Tuesday Blitz"]
[Site "Chess.com"]
[Date "2020.05.19"]
[Round "1"]
[White "Bad4life"]
[Black "hedgehog280"]
[Result "0-1"]
[WhiteElo "2291"]
[BlackElo "2587"]
[TimeControl "180+1"]
[EndTime "12:07:07 PDT"]
[Termination "hedgehog280 won by resignation"]

1. e4 {[%clk 0:03:00.9]} 1... c6 {[%clk 0:02:59.7]} 2. Nc3 {[%clk 0:03:00.6]}
2... d5 {[%clk 0:03:00.6]} 3. Nf3 {[%clk 0:03:00.2]} 3... dxe4 {[%clk
0:03:00.9]} 4. Nxe4 {[%clk 0:02:59.7]} 4... Nf6 {[%clk 0:03:01.8]} 5. Qe2 {[%clk
0:02:59.6]} 5... Nxe4 {[%clk 0:03:01.7]} 6. Qxe4 {[%clk 0:02:59.6]} 6... Nd7
{[%clk 0:02:57.6]} 7. Bc4 {[%clk 0:02:59.5]} 7... Nf6 {[%clk 0:02:57.9]} 8. Ne5
{[%clk 0:02:58.7]} 8... e6 {[%clk 0:02:58.1]} 9. Qe2 {[%clk 0:02:58.8]} 9... Be7
{[%clk 0:02:52.1]} 10. O-O {[%clk 0:02:58.3]} 10... O-O {[%clk 0:02:52.5]} 11.
b3 {[%clk 0:02:58]} 11... c5 {[%clk 0:02:50.9]} 12. Bb2 {[%clk 0:02:55]} 12...
a6 {[%clk 0:02:50.7]} 13. a4 {[%clk 0:02:54.7]} 13... Qc7 {[%clk 0:02:49.3]} 14.
Rad1 {[%clk 0:02:53.1]} 14... b6 {[%clk 0:02:48.7]} 15. d4 {[%clk 0:02:52.7]}
15... Bb7 {[%clk 0:02:46.6]} 16. h3 {[%clk 0:02:45.9]} 16... Rad8 {[%clk
0:02:33]} 17. dxc5 {[%clk 0:02:29.9]} 17... Bxc5 {[%clk 0:02:32.3]} 18. Bxa6
{[%clk 0:02:23.5]} 18... Ba8 {[%clk 0:02:30.4]} 19. Kh1 {[%clk 0:02:07.8]} 19...
Nd5 {[%clk 0:02:26.4]} 20. Qg4 {[%clk 0:02:00.1]} 20... f5 {[%clk 0:02:16.3]}
21. Qh4 {[%clk 0:01:52.2]} 21... Bd6 {[%clk 0:02:02.2]} 22. Nc4 {[%clk
0:01:36.7]} 22... Be7 {[%clk 0:01:50.8]} 23. Qg3 {[%clk 0:00:35.6]} 23... Qxg3
{[%clk 0:01:49.1]} 24. fxg3 {[%clk 0:00:35.8]} 24... f4 {[%clk 0:01:48.2]} 25.
Be5 {[%clk 0:00:15.1]} 25... Ne3 {[%clk 0:01:22.8]} 26. Nxe3 {[%clk 0:00:12.6]}
26... fxe3 {[%clk 0:01:23.7]} 27. Rxf8+ {[%clk 0:00:12.5]} 27... Rxf8 {[%clk
0:01:23.8]} 28. Bf4 {[%clk 0:00:11.6]} 28... Bc5 {[%clk 0:01:11.4]} 29. Bc4
{[%clk 0:00:11.8]} 29... Bd5 {[%clk 0:01:00.8]} 30. Bxd5 {[%clk 0:00:10.6]}
30... exd5 {[%clk 0:01:01.7]} 31. Rxd5 {[%clk 0:00:11.1]} 31... Re8 {[%clk
0:01:02.1]} 32. Rd1 {[%clk 0:00:09.5]} 32... e2 {[%clk 0:01:02.2]} 33. Re1
{[%clk 0:00:04.1]} 33... Bb4 {[%clk 0:01:02.2]} 34. Rxe2 {[%clk 0:00:02.2]}
34... Rxe2 {[%clk 0:01:02.8]} 35. c4 {[%clk 0:00:02.7]} 35... Bc5 {[%clk
0:01:02.7]} 36. h4 {[%clk 0:00:02.6]} 36... Rb2 {[%clk 0:01:00.2]} 37. Bc7
{[%clk 0:00:01.2]} 37... Rxb3 {[%clk 0:00:59.9]} 38. a5 {[%clk 0:00:01.7]} 38...
bxa5 {[%clk 0:00:57.4]} 39. Bxa5 {[%clk 0:00:02.6]} 39... Ra3 {[%clk 0:00:57.9]}
40. Bc7 {[%clk 0:00:02.4]} 40... Ra4 {[%clk 0:00:58.2]} 41. Bf4 {[%clk
0:00:02.3]} 41... Rxc4 {[%clk 0:00:58.3]} 42. Kh2 {[%clk 0:00:03.2]} 42... Kf7
{[%clk 0:00:58.4]} 43. Kh3 {[%clk 0:00:03.6]} 43... Ke6 {[%clk 0:00:58.9]} 44.
Kg4 {[%clk 0:00:03.9]} 44... Bd6 {[%clk 0:00:59.4]} 45. Kg5 {[%clk 0:00:03.3]}
45... Bxf4+ {[%clk 0:00:59.2]} 46. gxf4 {[%clk 0:00:04.2]} 46... h6+ {[%clk
0:00:58.2]} 47. Kg6 {[%clk 0:00:04.2]} 47... Rxf4 {[%clk 0:00:56.4]} 48. h5
{[%clk 0:00:04.5]} 48... Rg4+ {[%clk 0:00:56.3]} 0-1